[Event "76th Montenegro Championship 2024"]
[Site "Podgorica"]
[Date "2024.02.08"]
[Round "3.14"]
[White "Grbovic, Dino"]
[Black "Nikac, Predrag"]
[Result "1/2-1/2"]
[ECO "A89"]
[WhiteElo "1946"]
[BlackElo "2304"]
[Annotator "TA"]
[PlyCount "81"]
[EventDate "2024.02.06"]
[EventType "swiss"]
[EventCountry "MNE"]
[SourceTitle "playchess.com"]
[Source "ChessBase"]
[SourceQuality "1"]
[TimeControl "40/5400+30:1800+30"]

{[%evp 15,81,54,72,72,91,93,106,97,97,73,81,77,91,88,112,102,116,110,132,122,163,153,410,292,276,235,233,231,395,374,401,408,393,397,397,283,280,279,453,434,440,441,577,581,648,578,595,595,647,587,625,539,533,528,767,790,760,738,628,512,508,489,468,257,270,243,202,0]} 1. d4 {[%emt 0:00:04]} f5 {[%emt 0:01:54]} 2. g3 {[%emt 0:00:47]} Nf6 {[%emt 0:00:12]} 3. Bg2 {[%emt 0:00:23]} g6 {[%emt 0:00:11]} 4. c4 {[%emt 0:00:35]} d6 {[%emt 0:00:10]} 5. Nf3 {[%emt 0:00:31]} Bg7 {[%emt 0:00:10]} 6. O-O {[%emt 0:00:25]} O-O {[%emt 0:00:08]} 7. Nc3 {[%emt 0:00:24][%cal Bb1c3,Bc3e4,Be4g5][%mdl 32]} Nc6 {[%emt 0:01:15]} 8. d5 {[%emt 0:00:45]} Na5 {[%emt 0:00:16]} 9. b3 {[%emt 0:02:04]} Ne4 {[%emt 0:06:59] [#]} 10. Nxe4 {[%emt 0:00:18]} Bxa1 {[%emt 0:01:46]} (10... fxe4 11. Nd4) 11. Neg5 {[%emt 0:00:20] Bd2 would now be deadly. White is better.} c5 {[%emt 0:03:10]} 12. Bd2 {[%emt 0:01:07]} Bg7 {[%emt 0:02:40]} 13. Qe1 {[%emt 0:01:24] White is more active.} b6 {[%emt 0:00:29]} 14. e4 {[%emt 0:00:11]} Qe8 {[%emt 0:20:58]} 15. exf5 $1 {[%emt 0:17:45]} Bxf5 {[%emt 0:01:56]} 16. Nh4 {[%emt 0:06:35][%cal Oh4f5]} Bd7 {[%emt 0:10:21]} 17. Be4 $1 {[%emt 0:09:19][%cal Og5h7] Strongly threatening Nxh7!} ({Of course not} 17. Bc3 $6 Bxc3 18. Qxc3 Rf6 $11) 17... Rf6 {[%emt 0:01:14]} 18. Bc3 {[%emt 0:08:55][%cal Og5h7] Black must now prevent Nxh7!} h6 {[%emt 0:03:39] A mistake that costs the game.} (18... Rf7 $16) 19. Bxf6 {[%emt 0:02:35]} exf6 {[%emt 0:00:33]} 20. Ne6 {[%emt 0:12:07]} f5 {[%emt 0:00:14] [#]} 21. Nc7 $1 {[%emt 0:06:23][%csl LRa8,LRe8] A dynamic duo of knights.} Qf7 {[%emt 0:13:52]} (21... Qb8 {was necessary.}) 22. Nxa8 $18 {[%emt 0:04:30]} fxe4 {[%emt 0:00:11]} 23. Qxe4 {[%emt 0:01:24]} g5 {[%emt 0:01:53]} 24. Ng6 {[%emt 0:05:57][%cal Bh4g6,Bg6e7,Be7c6][%mdl 32]} Bd4 {[%emt 0:02:16]} 25. Ne7+ {[%emt 0:02:02]} Kf8 {[%emt 0:08:42] [#]} 26. Nc6 {[%emt 0:01:29]} ({Not} 26. Ng6+ Kg7 $14) 26... Bf5 $2 {[%emt 0:00:05]} (26... Nxc6 {might work better.} 27. dxc6 Bh3) 27. Qf3 {[%emt 0:02:47]} Nxc6 {[%emt 0:00:36]} 28. dxc6 {[%emt 0:00:08]} Kg7 {[%emt 0:00:24] [#]} 29. Nc7 $1 {[%emt 0:05:11][%mdl 512]} Qg6 {[%emt 0:13:50] [#]} (29... a6 30. Ne8+) 30. Ne8+ $1 {[%emt 0:03:26][%mdl 512]} Qxe8 {[%emt 0:00:24]} 31. Qxf5 {[%emt 0:00:03] And now c7 would win.} Qxc6 {[%emt 0:00:07][%mdl 4096] Endgame. KQR-KQB} 32. h4 {[%emt 0:02:18] Hoping for Re1.} gxh4 {[%emt 0:01:22]} 33. gxh4 {[%emt 0:00:28]} Qe8 {[%emt 0:00:35]} 34. Kh1 {[%emt 0:02:59]} Qa8+ {[%emt 0:01:20]} 35. Kh2 {[%emt 0:00:27]} Kh8 {[%emt 0:00:48]} 36. Rg1 {[%emt 0:00:48]} Qd8 {[%emt 0:00:47]} 37. Qh5 {[%emt 0:01:06]} Qf8 {[%emt 0:00:13]} 38. Rg2 {[%emt 0:00:51]} Bxf2 {[%emt 0:00:40]} 39. Qg4 {[%emt 0:00:32] Against Qf4+} (39. Rg5 $142 {Threatens to win with Rf5.} Bd4 40. Rf5) 39... Bd4 {[%emt 0:00:27]} 40. Re2 {[%emt 0:00:00]} Be5+ {[%emt 0:00:00]} 41. Kh3 $2 {[%emt 0:31:37] Weighted Error Value: White=0.37/Black=0.45.  Loses game:     	---       	Black=1      Missed win:     	White=1     	---        Mistake:       	White=1     	Black=2      Inaccurate:     	---       	Black=3      OK:         	White=10    	Black=8      Best:        	White=2     	Black=3      Strong:       	White=3     	---} ({White should try} 41. Kg1 $18) 1/2-1/2

[Event "76th Montenegro Championship 2024"]
[Site "Podgorica"]
[Date "2024.02.08"]
[Round "3.15"]
[White "Podlesnik, Bogdan"]
[Black "Abramovic, Dragoljub"]
[Result "1-0"]
[ECO "B00"]
[WhiteElo "2284"]
[BlackElo "2018"]
[Annotator "TA"]
[PlyCount "121"]
[EventDate "2024.02.06"]
[EventType "swiss"]
[EventCountry "MNE"]
[SourceTitle "playchess.com"]
[Source "ChessBase"]
[SourceQuality "1"]
[TimeControl "40/5400+30:1800+30"]

{[%evp 32,121,48,54,57,56,54,42,57,50,60,43,39,35,35,37,45,41,59,65,70,64,66,70,108,95,104,85,89,79,80,75,91,89,105,100,191,188,149,158,177,178,215,256,232,159,150,100,127,116,143,122,331,320,335,324,324,309,566,573,577,503,539,535,604,600,927,921,908,887,1059,1048,985,606,1718,814,2281,1660,1666,1498,1681,1760,2272,2035,29990,29991,29991,29992,29992,29990,29993,29994]} 1. e4 {[%emt 0:00:20]} Nc6 {[%emt 0:11:50]} 2. Nc3 {[%emt 0:00:46]} Nf6 {[%emt 0:00:12]} 3. d4 {[%emt 0:03:06]} d5 {[%emt 0:01:50]} 4. e5 {[%emt 0:00:45]} Ng8 {[%emt 0:00:08]} 5. f4 {[%emt 0:02:13]} h5 {[%emt 0:00:23]} 6. Be3 {[%emt 0:03:02] B00: Queen's Fianchetto Defence, Nimzowitsch Defence.} Bf5 {[%emt 0:00:20]} 7. Bd3 {[%emt 0:01:19]} Bg4 $146 {[%emt 0:04:40]} ({Predecessor:} 7... Bxd3 8. Qxd3 e6 9. f5 Nb4 10. Qb5+ c6 11. Qe2 exf5 12. Nf3 h4 13. O-O-O Qe7 {0-1 Dubnevych,M (2340)-Shimanov,A (2578) Titled Tuesday intern op 23rd Jan Late blitz 2024 (3)}) 8. Qd2 {[%emt 0:05:03]} Nh6 {[%emt 0:00:57]} 9. h3 {[%emt 0:01:59]} Bf5 {[%emt 0:00:06]} 10. Nf3 {[%emt 0:06:00]} e6 {[%emt 0:01:40]} 11. g3 {[%emt 0:07:47]} Qd7 {[%emt 0:03:00]} 12. O-O-O {[%emt 0:02:41]} Bb4 {[%emt 0:00:52]} 13. a3 {[%emt 0:01:37]} Bxc3 {[%emt 0:01:56]} 14. Qxc3 {[%emt 0:00:08]} O-O-O {[%emt 0:04:13]} 15. Be2 {[%emt 0:05:29]} Be4 {[%emt 0:03:10]} 16. Rhg1 {[%emt 0:00:17]} Bf5 {[%emt 0:10:21]} 17. Bf1 $1 {[%emt 0:03:28]} a6 {[%emt 0:01:57]} 18. Nd2 {[%emt 0:00:13]} Nb8 {[%emt 0:02:11]} 19. Rh1 {[%emt 0:03:54]} b6 {[%emt 0:00:45]} 20. Be2 {[%emt 0:00:40]} Ng8 {[%emt 0:07:00]} 21. Bf3 {[%emt 0:03:14]} Ne7 {[%emt 0:01:42]} 22. Bf2 {[%emt 0:01:01]} Kb7 {[%emt 0:01:07]} 23. g4 {[%emt 0:00:23]} Bg6 {[%emt 0:01:01]} 24. b3 {[%emt 0:02:08]} Rc8 {[%emt 0:00:58]} 25. Kb2 {[%emt 0:00:50]} Rh7 {[%emt 0:01:42]} 26. Rc1 {[%emt 0:05:11]} Rch8 {[%emt 0:03:24]} 27. Qe3 {[%emt 0:00:58]} c6 {[%emt 0:02:03]} 28. Bg3 {[%emt 0:02:52]} a5 {[%emt 0:00:48]} 29. Qf2 {[%emt 0:00:34]} Na6 {[%emt 0:00:30]} 30. Bg2 {[%emt 0:01:46]} Nc7 {[%emt 0:00:42]} 31. Rhf1 {[%emt 0:03:47]} Ra8 {[%emt 0:00:33]} 32. Bh4 {[%emt 0:00:29]} hxg4 {[%emt 0:01:26]} 33. hxg4 {[%emt 0:00:24]} Rhh8 {[%emt 0:00:48] [#]} (33... Ng8 $16 {keeps fighting.}) 34. Bxe7 $1 $18 {[%emt 0:02:28]} Qxe7 {[%emt 0:00:02]} 35. f5 {[%emt 0:00:09]} Nb5 {[%emt 0:04:59]} 36. Ra1 {[%emt 0:01:15]} (36. fxg6 $2 Qxa3+ 37. Kb1 Nc3#) 36... exf5 {[%emt 0:00:22]} 37. gxf5 {[%emt 0:00:38]} (37. a4 $6 Nc7 $16) 37... Bh5 {[%emt 0:00:25]} 38. a4 {[%emt 0:01:35]} Nc7 {[%emt 0:00:23]} 39. Qg3 {[%emt 0:00:39]} (39. c4 $142) 39... Be2 {[%emt 0:04:30]} 40. Rf4 {[%emt 0:00:00]} Ba6 {[%emt 0:00:00]} 41. Rg4 {[%emt 0:05:37]} (41. Qxg7 $2 Rag8 $19) 41... b5 $2 {[%emt 0:17:37]} (41... Rh5 $16 {was worth a try.}) 42. Rxg7 $18 {[%emt 0:01:39]} bxa4 {[%emt 0:00:07]} 43. Rxa4 {[%emt 0:03:52]} Bb5 {[%emt 0:00:22]} 44. Ra1 {[%emt 0:02:25]} Rh5 $2 {[%emt 0:02:03]} (44... Be2 {was called for.} 45. f6 Qd7) 45. f6 $18 {[%emt 0:02:53]} Qf8 {[%emt 0:01:20]} 46. Qg4 {[%emt 0:02:25]} Rh2 {[%emt 0:05:05]} 47. Nf3 {[%emt 0:00:26]} Rh8 {[%emt 0:00:43]} 48. Qd7 {[%emt 0:00:47]} a4 {[%emt 0:02:58]} 49. Rxf7 {[%emt 0:01:19]} a3+ {[%emt 0:00:07]} 50. Ka2 {[%emt 0:00:35]} Qb8 {[%emt 0:00:17]} 51. Ng5 {[%emt 0:01:05]} Kb6 {[%emt 0:00:56]} 52. Qd6 {[%emt 0:04:06]} Rh2 {[%emt 0:01:24]} 53. Rg1 {[%emt 0:02:06]} (53. Qc5+ $142 Ka6 54. Kb1 (54. Qxa3+ Kb6 $11) 54... Rxg2 55. Rxa3+ Kb7 56. Ne6 Rxa3 57. Qxa3 (57. Rxc7+ Qxc7 58. Nxc7 Be2 $18) 57... Rg1+ 58. Kb2) 53... Qc8 {[%emt 0:02:38]} 54. e6 {[%emt 0:01:21]} Na6 {[%emt 0:00:33]} 55. Nf3 {[%emt 0:01:34]} Rh5 {[%emt 0:03:02]} 56. Ne5 {[%emt 0:02:14]} (56. Qxa3 $2 {too greedy.} Nb4+ (56... Qxe6 $2 {is the wrong capture.} 57. Qe7 $18) 57. Kb2 Rxa3 58. Kxa3 Nxc2+ (58... Qxe6 $2 59. Kxb4 Qxf7 60. c4 $19) 59. Kb2 Qxe6 $19) 56... Ka5 {[%emt 0:00:40]} 57. Kxa3 {[%emt 0:01:28]} Rg5 {[%emt 0:06:02]} 58. Kb2 {[%emt 0:03:46]} Kb6 {[%emt 0:02:34]} 59. Nd7+ {[%emt 0:00:48]} Kb7 {[%emt 0:01:13]} 60. Nc5+ {[%emt 0:00:11]} Kb6 {[%emt 0:00:02]} 61. Nxa6 {[%emt 0:00:19]} 1-0

[Event "76th Montenegro Championship 2024"]
[Site "Podgorica"]
[Date "2024.02.08"]
[Round "3.16"]
[White "Zherebtsova, Alexandra"]
[Black "Vukovic, Krsto"]
[Result "1-0"]
[ECO "A44"]
[WhiteElo "2270"]
[BlackElo "1904"]
[Annotator "TA"]
[PlyCount "39"]
[EventDate "2024.02.06"]
[EventType "swiss"]
[EventCountry "MNE"]
[SourceTitle "playchess.com"]
[Source "ChessBase"]
[SourceQuality "1"]
[TimeControl "40/5400+30:1800+30"]

{[%evp 9,39,149,183,182,191,179,170,152,169,126,216,228,231,241,354,352,337,335,337,327,576,555,756,739,774,758,889,854,1604,1603,1553,1528]} 1. d4 {[%emt 0:04:34][%cal Bd2d4,Bd4d5][%mdl 32]} c5 {[%emt 0:03:19]} 2. d5 {[%emt 0:00:04]} e5 {[%emt 0:00:03]} 3. e4 {[%emt 0:00:07]} d6 {[%emt 0:00:06]} 4. Nc3 {[%emt 0:02:08]} f5 {[%emt 0:00:46]} 5. Bb5+ {[%emt 0:00:34]} Bd7 {[%emt 0:01:21]} 6. exf5 {[%emt 0:01:00]} Bxb5 {[%emt 0:00:07]} 7. Nxb5 {[%emt 0:00:03]} Qd7 {[%emt 0:00:21]} 8. Qh5+ {[%emt 0:02:55] White is clearly better.} Kd8 {[%emt 0:00:23]} 9. Nc3 {[%emt 0:06:19]} b5 {[%emt 0:01:57]} (9... Na6 $16) 10. Nf3 $18 {[%emt 0:12:56][%cal Bg1f3,Bf3g5,Bg5e6][%mdl 32]} Nf6 {[%emt 0:05:09]} 11. Bg5 {[%emt 0:02:31]} Qxf5 {[%emt 0:03:01]} (11... Na6 $142 12. Bxf6+ gxf6) 12. Bxf6+ {[%emt 0:02:18]} ({Weaker is} 12. Nxb5 Qe4+ 13. Kd1 Qxd5+ 14. Kc1 Qe6 $11) 12... Qxf6 {[%emt 0:00:12]} 13. Ng5 {[%emt 0:01:13] Black is weak on the light squares} ({Don't take} 13. Nxb5 a6 $18) 13... g6 {[%emt 0:01:36]} 14. Qg4 {[%emt 0:00:46] [#] Strongly threatening Ne6+.} Na6 $2 {[%emt 0:06:33]} (14... Qf5 {was necessary.} 15. Qxf5 gxf5 16. Nf7+ (16. Nxb5 Kd7 $16) 16... Ke7) 15. Ne6+ {[%emt 0:01:59] Excellent horsemanship. White is clearly winning.} Ke7 {[%emt 0:00:18]} 16. O-O {[%emt 0:06:54]} Nb4 {[%emt 0:03:32]} 17. Qe2 {[%emt 0:03:11]} Rb8 {[%emt 0:02:09]} 18. f4 {[%emt 0:08:12] [#] aiming for fxe5.} Qf5 {[%emt 0:03:12]} 19. fxe5 {[%emt 0:02:43]} Qxe5 {[%emt 0:02:27]} 20. Qf2 {[%emt 0:01:46] Black got outplayed after the opening.   Weighted Error Value: White=0.07 (flawless) /Black=0.76.  Mistake:       	---       	Black=3      Inaccurate:     	---       	Black=1      OK:         	White=5     	Black=3      Best:        	White=2     	---} 1-0

[Event "76th Montenegro Championship 2024"]
[Site "Podgorica"]
[Date "2024.02.08"]
[Round "3.17"]
[White "Scekic, Veljko"]
[Black "Popovic, Mateja"]
[Result "1/2-1/2"]
[ECO "B73"]
[WhiteElo "2206"]
[BlackElo "1880"]
[Annotator "TA"]
[PlyCount "73"]
[EventDate "2024.02.06"]
[EventType "swiss"]
[EventCountry "MNE"]
[SourceTitle "playchess.com"]
[Source "ChessBase"]
[SourceQuality "1"]
[TimeControl "40/5400+30:1800+30"]

{[%evp 16,73,16,6,46,22,20,8,0,0,0,0,0,0,0,0,0,0,0,0,0,0,0,0,0,0,0,0,0,0,7,6,2,0,0,-52,-47,-43,0,0,0,0,0,0,0,0,0,0,0,0,0,0,0,0,0,0,0,0,0,0]} 1. e4 {[%emt 0:06:29]} c5 {[%emt 0:00:11]} 2. Nf3 {[%emt 0:00:15]} d6 {[%emt 0:00:13]} 3. d4 {[%emt 0:00:16]} cxd4 {[%emt 0:00:06]} 4. Nxd4 {[%emt 0:00:09]} Nc6 {[%emt 0:00:25]} 5. Nc3 {[%emt 0:00:29]} Nf6 {[%emt 0:00:20]} 6. Be2 {[%emt 0:00:14]} g6 {[%emt 0:05:31]} 7. Be3 {[%emt 0:02:54]} Bg7 {[%emt 0:00:14]} 8. O-O {[%emt 0:00:20]} O-O {[%emt 0:00:16]} 9. h3 {[%emt 0:00:41]} e6 {[%emt 0:04:42]} 10. Qd2 {[%emt 0:04:31]} d5 {[%emt 0:03:27]} 11. exd5 {[%emt 0:01:34]} (11. Rad1 {is interesting.} Nxe4 12. Nxe4 Bxd4 13. Bxd4 dxe4 14. Bc3) 11... Nxd5 {[%emt 0:10:09]} 12. Nxd5 {[%emt 0:06:23] [#] Threatens to win with Nxc6.} Nxd4 {[%emt 0:01:53]} 13. Bxd4 {[%emt 0:00:05]} Qxd5 {[%emt 0:00:12]} 14. Rfd1 {[%emt 0:00:05]} Rd8 {[%emt 0:06:58][%cal Rg7d4]} 15. c3 {[%emt 0:00:21]} e5 {[%emt 0:03:09]} 16. Be3 {[%emt 0:00:37]} Qxd2 {[%emt 0:00:31]} 17. Bxd2 {[%emt 0:00:39]} Be6 {[%emt 0:01:19] Inhibits Bc4.} 18. Bf3 {[%emt 0:03:30][%cal Od2g5]} f5 {[%emt 0:11:34]} 19. Bg5 {[%emt 0:01:13]} Rxd1+ {[%emt 0:02:53]} 20. Rxd1 {[%emt 0:00:46]} e4 {[%emt 0:00:14]} ({Of course not} 20... Bxa2 21. Ra1 (21. Bxb7 Rb8 $11) 21... e4 22. Bxe4 $14 (22. Rxa2 exf3 23. gxf3 a5 $11)) 21. Be2 {[%emt 0:00:04]} h6 {[%emt 0:01:27]} 22. Be3 {[%emt 0:01:02]} b6 {[%emt 0:13:00]} 23. a4 {[%emt 0:02:28]} g5 {[%emt 0:02:18]} 24. Rd6 {[%emt 0:06:27]} Kf7 {[%emt 0:02:40]} 25. a5 {[%emt 0:00:25]} Ke7 {[%emt 0:02:06]} 26. Rd1 {[%emt 0:11:00]} f4 {[%emt 0:05:29]} 27. Bd4 {[%emt 0:00:09] The position is equal.} Bxd4 {[%emt 0:02:09]} 28. Rxd4 {[%emt 0:00:08]} bxa5 {[%emt 0:00:17]} 29. Rxe4 $11 {[%emt 0:00:32][%mdl 4096] Endgame. KRB-KRB} Kf6 {[%emt 0:01:48]} 30. Ra4 {[%emt 0:09:50]} Rb8 {[%emt 0:00:17]} 31. b4 {[%emt 0:00:41]} axb4 {[%emt 0:00:34]} 32. cxb4 {[%emt 0:00:08]} Rb7 {[%emt 0:06:11]} 33. Ra6 {[%emt 0:00:52]} Rxb4 {[%emt 0:00:55]} 34. Rxa7 {[%emt 0:00:06]} Rb6 {[%emt 0:00:15]} 35. Rh7 {[%emt 0:00:16][%cal Oe2h5]} Kg6 {[%emt 0:00:09]} 36. Bd3+ {[%emt 0:00:13]} Bf5 {[%emt 0:00:12]} 37. Bxf5+ {[%emt 0:43:08] Weighted Error Value: White=0.07 (flawless) /Black=0.04 (flawless) .  Mistake:       	White=1     	---        Inaccurate:     	---       	Black=1      OK:         	White=15    	Black=16     Best:        	---       	Black=1} 1/2-1/2

[Event "76th Montenegro Championship 2024"]
[Site "Podgorica"]
[Date "2024.02.08"]
[Round "3.18"]
[White "Zivkovic, Slaven"]
[Black "Pobor, Milo"]
[Result "0-1"]
[ECO "B48"]
[WhiteElo "1899"]
[BlackElo "2201"]
[Annotator "TA"]
[PlyCount "106"]
[EventDate "2024.02.06"]
[EventType "swiss"]
[EventCountry "MNE"]
[SourceTitle "playchess.com"]
[Source "ChessBase"]
[SourceQuality "1"]
[TimeControl "40/5400+30:1800+30"]

{[%evp 11,106,31,30,34,85,4,-2,-18,-20,-33,-22,-28,-39,-31,-31,-27,-23,-60,-48,-62,-59,-56,-40,-64,-54,-55,-23,-75,-78,-115,-87,-91,-81,-133,-117,-130,-122,-146,-124,-137,-133,-194,-190,-200,-227,-281,-268,-396,-386,-423,-361,-429,-340,-382,-372,-458,-455,-455,-478,-467,-459,-506,-456,-452,-444,-545,-562,-552,-585,-652,-613,-683,-627,-703,-689,-706,-672,-717,-692,-1600,-1535,-1485,-1506,-1306,-1185,-2234,-1142,-946,-655,-2416,-2377,-29967,-29953,-29964,-6871,-29977,-29966]} 1. e4 {[%emt 0:00:02]} c5 {[%emt 0:03:47]} 2. Nf3 {[%emt 0:00:32]} e6 {[%emt 0:00:13]} 3. d4 {[%emt 0:00:09]} cxd4 {[%emt 0:00:05]} 4. Nxd4 {[%emt 0:00:04]} Nc6 {[%emt 0:00:03]} 5. Nc3 {[%emt 0:00:08]} Qc7 {[%emt 0:00:05]} 6. Be3 {[%emt 0:00:05]} Nf6 {[%emt 0:01:29]} 7. Qf3 {[%emt 0:02:06]} h5 {[%emt 0:08:38]} (7... a6 $14) 8. h4 {[%emt 0:00:58]} (8. Ndb5 $16 Qb8 9. Qg3) 8... Ng4 $11 {[%emt 0:05:10]} 9. Ndb5 {[%emt 0:24:56] The position is equal.} Qb8 {[%emt 0:06:07]} 10. O-O-O {[%emt 0:06:25]} Nxe3 {[%emt 0:09:21]} 11. Qxe3 {[%emt 0:00:11][%cal Oc3d5]} (11. fxe3 Ne5 12. Qh3 a6 $11) 11... a6 {[%emt 0:00:08]} 12. Nd4 {[%emt 0:08:25]} Bc5 {[%emt 0:04:55]} 13. Qg5 $1 {[%emt 0:00:17][%csl LRc5,LRg7]} Qe5 {[%emt 0:12:36]} 14. Qxe5 {[%emt 0:08:00]} Nxe5 {[%emt 0:01:16]} 15. f3 {[%emt 0:06:04] Inhibits Ng4.} b5 {[%emt 0:03:42]} 16. Kb1 {[%emt 0:06:13]} Bb7 {[%emt 0:01:11]} 17. Be2 {[%emt 0:03:50]} Rc8 {[%emt 0:06:11]} 18. a3 {[%emt 0:06:47]} Bb6 {[%emt 0:03:27]} 19. Na2 {[%emt 0:04:20]} (19. a4 $11) 19... Ke7 {[%emt 0:02:15] Black keeps a firm grip on the game.} 20. Nc1 {[%emt 0:01:48]} d5 {[%emt 0:02:51]} 21. exd5 {[%emt 0:00:59]} Bxd5 {[%emt 0:00:39]} 22. Rhe1 {[%emt 0:02:10]} ({White should play} 22. Nf5+ Kf6 (22... exf5 23. Rxd5 Rc5 24. Rd2 $11) 23. Ng3) 22... Rhd8 $36 {[%emt 0:00:39][%mdl 2048] Black is really pushing. Black is much more active.} 23. c3 {[%emt 0:04:10]} ({Don't go for} 23. Bxb5 $2 axb5 (23... Nxf3 24. Nxf3 axb5 25. Nd3 $19) 24. Rxe5 Bxd4 25. Rxd4 Ba2+ 26. Kxa2 Rxd4 $19) 23... Kf6 {[%emt 0:04:19]} 24. Rf1 {[%emt 0:08:59]} Rd7 {[%emt 0:03:50]} 25. g4 {[%emt 0:01:38]} Rcd8 {[%emt 0:00:32]} 26. g5+ {[%emt 0:00:55] [#]} (26. gxh5 $17 Bb7 27. f4) 26... Ke7 $1 $19 {[%emt 0:00:26]} 27. f4 {[%emt 0:01:00]} Ng4 {[%emt 0:00:37]} 28. Bxg4 {[%emt 0:00:18]} hxg4 {[%emt 0:00:07]} 29. f5 {[%emt 0:00:05] White is weak on the light squares} (29. Rde1 {keeps fighting.}) 29... Be4+ {[%emt 0:00:14] This pair of bishops is nice.} 30. Ka1 {[%emt 0:00:10]} Bxd4 {[%emt 0:00:10]} 31. cxd4 {[%emt 0:00:40]} Bxf5 {[%emt 0:03:19]} 32. Ne2 {[%emt 0:00:27]} g6 {[%emt 0:00:06]} 33. Rd2 {[%emt 0:00:29]} Rh8 {[%emt 0:01:06]} 34. Rh1 {[%emt 0:00:20]} Be4 {[%emt 0:00:11]} 35. Rh2 {[%emt 0:00:07]} Bf3 {[%emt 0:00:09]} 36. Ng1 {[%emt 0:02:04]} Bb7 {[%emt 0:01:38]} 37. Ne2 {[%emt 0:00:06]} e5 {[%emt 0:01:34]} 38. b4 {[%emt 0:01:43]} Bf3 {[%emt 0:04:17]} 39. Kb2 {[%emt 0:00:26]} Ke6 {[%emt 0:00:24]} 40. Kc3 {[%emt 0:00:00]} Rc8+ {[%emt 0:00:00]} 41. Kb2 {[%emt 0:02:11]} Rc4 {[%emt 0:01:10]} 42. h5 {[%emt 0:00:10]} gxh5 {[%emt 0:00:31]} 43. Rxh5 {[%emt 0:00:07]} Bxe2 {[%emt 0:00:37]} 44. Rxe2 {[%emt 0:00:07]} Rcxd4 {[%emt 0:00:24][%mdl 4096] Endgame. KRR-KRR} 45. g6 {[%emt 0:00:06] [#] Threatens to win with g7.} Rd2+ {[%emt 0:01:10]} 46. Rxd2 {[%emt 0:00:09]} Rxd2+ {[%emt 0:00:04] KR-KR} 47. Kc3 {[%emt 0:00:05]} fxg6 {[%emt 0:00:15]} 48. Rg5 {[%emt 0:00:08]} Rf2 {[%emt 0:00:34] ...Kf6 would now be deadly.} 49. Rxg4 {[%emt 0:00:17]} Kf5 {[%emt 0:00:31]} 50. Rg1 {[%emt 0:00:23]} g5 {[%emt 0:00:18]} 51. a4 {[%emt 0:00:33]} Rf3+ {[%emt 0:00:24]} 52. Kd2 {[%emt 0:00:05]} bxa4 {[%emt 0:00:09] ( -> ...g4)} 53. Ra1 {[%emt 0:00:06]} a3 {[%emt 0:00:03] Weighted Error Value: White=0.79/Black=0.18 (very precise) .  Mistake:       	White=5     	Black=1      Inaccurate:     	White=2     	Black=1      OK:         	White=8     	Black=15     Best:        	White=1     	Black=1      Strong:       	White=1     	Black=1} 0-1